bitfinex/quotes_ETHUSD_20251117
["timestamp","ask_amount","ask_price","bid_price","bid_amount"]
[1763402121366,0.2906731,3063.5,3061.9,0.0942]
[1763402121569,0.7788731,3063.5,3061.9,0.0942]
[1763402121807,0.7788731,3063.4,3061.8,0.001]
[1763402121955,0.2906731,3063.3,3061.9,0.0942]
[1763402122159,0.4882,3063.4,3061.9,0.0942]
[1763402122362,0.4882,3063.4,3062.0,0.03265839]
[1763402122672,0.4882,3063.5,3061.9,0.0942]
[1763402122875,2.28780513,3063.9,3061.9,0.0942]
[1763402123177,0.199,3064.0,3062.0,0.03265839]
[1763402123393,0.199,3064.0,3061.9,0.0942]
[1763402123556,0.4882,3063.9,3061.9,0.0942]
[1763402123760,0.199,3064.0,3061.9,0.0942]
[1763402123987,0.4882,3064.3,3062.0,0.405504]
[1763402124194,0.67020868,3064.6,3062.0,0.405504]
[1763402124395,0.4882,3064.5,3062.1,0.0942]
[1763402124826,0.4882,3064.5,3062.2,0.03265626]
[1763402124827,1.03463945,3064.5,3062.2,0.03265626]
[1763402124963,0.17048481,3064.4,3062.2,0.405504]
[1763402125162,0.4882,3064.5,3062.3,0.0942]
[1763402127416,0.90699264,3064.4,3062.3,0.0942]
[1763402127628,0.67029301,3064.4,3062.3,0.0942]
[1763402127783,0.4882,3064.3,3062.3,0.0942]
[1763402128483,1.16049301,3064.7,3062.4,0.405504]
[1763402128688,0.4902,3064.7,3062.4,0.405504]
[1763402128919,0.002,3064.7,3062.6,0.405504]
[1763402129106,0.4882,3064.6,3062.6,0.405504]
[1763402129307,0.002,3064.4,3062.7,0.0942]
[1763402129823,0.4902,3064.4,3062.7,0.0942]
[1763402130325,0.002,3064.4,3062.8,1.31249664]
[1763402130522,0.002,3064.4,3062.9,1.07661541]
[1763402130724,0.002,3064.4,3063.0,0.0942]
[1763402131028,0.4882,3064.3,3062.7,0.0942]
[1763402131224,0.4882,3064.3,3062.4,1.03606501]
[1763402131225,0.4882,3064.3,3062.4,0.0942]
[1763402131525,0.4882,3064.3,3062.7,0.0942]
[1763402132221,0.4882,3064.3,3061.9,0.12785945]
[1763402132222,10.26645007,3064.1,3061.9,0.12785945]
[1763402132453,0.90699264,3063.9,3061.9,0.0952]
[1763402132610,1.57726106,3063.9,3061.9,0.0952]
[1763402132804,0.68,3063.8,3061.9,0.0952]
[1763402133220,0.1918,3063.8,3061.9,0.0952]
[1763402133420,0.4882,3063.7,3061.9,0.001]
[1763402133617,1.03463945,3063.7,3061.9,0.001]
[1763402133818,0.21334321,3063.6,3061.9,0.001]
[1763402134023,0.4882,3063.5,3061.9,0.001]
[1763402134724,0.70154321,3063.6,3062.0,0.0942]
[1763402135044,0.4882,3063.6,3062.0,0.0942]
[1763402135222,0.4882,3063.5,3061.9,0.001]
[1763402136610,0.4882,3063.5,3061.9,0.0952]
[1763402137530,0.4882,3063.5,3061.9,0.001]
[1763402137930,9.35945743,3063.3,3061.9,0.001]
[1763402138156,2.56838012,3063.2,3061.9,0.001]
[1763402138355,2.38918233,3063.2,3061.9,0.001]
[1763402138559,0.4916,3063.1,3061.9,0.001]
[1763402138917,0.99058969,3063.2,3062.0,0.0942]
[1763402139260,0.6710867,3063.4,3062.0,0.0942]
[1763402139560,0.4916,3063.5,3062.0,0.0942]
[1763402139849,0.4916,3063.4,3062.0,0.0942]
[1763402140456,0.4916,3063.4,3061.9,0.001]
[1763402140637,0.4916,3063.4,3062.0,0.0942]
[1763402140842,0.20696793,3063.3,3062.0,0.0942]
[1763402141243,0.69856793,3063.3,3062.0,0.0942]
[1763402141615,0.20696793,3063.3,3062.0,0.0942]
[1763402141817,0.4916,3063.7,3062.0,0.0942]
[1763402142043,0.1918,3063.8,3062.0,0.0942]
[1763402142656,0.29160338,3063.8,3062.0,0.0942]
[1763402142852,0.47840338,3063.9,3062.0,0.0942]
[1763402143866,0.4916,3063.8,3062.0,0.0942]
[1763402144160,0.29160338,3063.7,3062.0,0.0942]
[1763402144738,0.29160338,3063.8,3062.1,0.03265732]
[1763402144939,0.1868,3063.9,3062.1,0.03265732]
[1763402145139,0.1868,3063.9,3061.9,0.001]
[1763402145140,0.1868,3063.9,3062.2,0.0942]
[1763402145867,0.4916,3063.8,3062.2,0.0942]
[1763402146068,0.16473992,3063.9,3062.2,0.0942]
[1763402146069,0.2918126,3063.7,3062.2,0.0942]
[1763402146233,0.16473992,3063.9,3062.2,0.0942]
[1763402146426,0.4916,3063.8,3062.2,0.0942]
[1763402146630,0.2918126,3063.7,3062.2,0.0942]
[1763402147071,0.7834126,3063.7,3062.2,0.0942]
[1763402147227,0.2918126,3063.6,3062.2,0.0942]
[1763402147982,0.4916,3063.5,3061.9,0.001]
[1763402148145,0.2918126,3063.4,3062.2,0.1162]
[1763402148332,0.4916,3063.5,3062.2,0.1162]
[1763402148527,0.29196598,3063.4,3062.2,0.1162]
[1763402149474,0.78356598,3063.4,3062.0,0.001]
[1763402149686,0.29206239,3063.3,3062.0,0.001]
[1763402149844,0.78366239,3063.3,3062.0,0.001]
[1763402150029,0.29206239,3063.2,3062.0,0.001]
[1763402150230,0.78366239,3063.2,3062.0,0.001]
[1763402150471,0.4916,3063.2,3062.0,0.001]
[1763402150672,0.4916,3063.2,3062.0,0.1172]
[1763402151045,0.4916,3063.2,3062.0,0.001]
[1763402151273,0.29198188,3063.1,3062.0,0.001]
[1763402151652,0.4916,3063.0,3062.0,0.001]
[1763402152039,0.1868,3062.9,3062.0,0.001]
[1763402152240,0.47874103,3062.9,3062.0,0.001]
[1763402152441,0.4916,3062.8,3062.0,0.001]
[1763402153143,0.4916,3063.3,3062.0,0.001]
[1763402153348,0.4916,3063.3,3062.1,0.1162]
[1763402153638,0.18239105,3063.8,3062.1,0.1162]
[1763402153639,0.4916,3063.7,3062.1,0.1162]
[1763402153853,0.29197476,3063.6,3062.1,0.1162]
[1763402154440,0.4916,3063.6,3062.1,0.1162]
[1763402155751,0.4916,3063.6,3062.0,0.001]
[1763402155964,0.4916,3063.6,3062.1,0.1162]
[1763402156154,0.29213316,3063.5,3062.1,0.1162]
[1763402157378,0.002,3063.9,3063.4,0.1162]
[1763402157590,0.4916,3063.8,3062.1,0.1162]
[1763402158594,0.1888,3063.9,3062.1,0.1162]
[1763402158910,0.1888,3063.9,3062.0,0.001]
[1763402158911,0.4916,3063.8,3062.0,0.001]
[1763402159200,0.2923561,3063.7,3062.1,0.1162]
[1763402159559,0.4916,3063.6,3062.1,0.1162]
[1763402159800,0.2923561,3063.5,3062.1,0.1162]
[1763402159970,0.29247688,3063.5,3062.1,0.1162]
[1763402160302,0.4916,3063.4,3062.1,0.1162]
[1763402160668,0.4916,3063.7,3062.1,0.1162]
[1763402160879,0.29265893,3063.6,3062.1,0.1162]
[1763402161061,0.2926521,3063.8,3062.2,0.405504]
[1763402161266,0.1888,3063.9,3062.2,1.31249664]
[1763402161472,0.002,3063.9,3062.3,1.19501541]
[1763402161812,0.4916,3063.8,3062.3,0.1162]
[1763402161983,0.29256739,3063.7,3062.4,0.1162]
[1763402162163,0.78416739,3063.8,3062.0,0.1172]
[1763402162365,0.29256739,3063.7,3062.0,0.1172]
[1763402162573,0.78416739,3063.7,3062.0,0.1172]
[1763402162901,0.78416739,3063.6,3062.0,0.1172]
[1763402163225,0.29256739,3063.5,3062.0,0.1172]
[1763402163400,0.78416739,3063.5,3062.0,0.001]
[1763402163577,0.29256739,3063.4,3062.0,0.001]
[1763402163768,1.45810376,3063.4,3062.0,0.001]
[1763402163969,0.96650376,3063.3,3062.0,0.001]
[1763402164203,0.29256739,3063.2,3062.0,0.001]
[1763402164408,0.78416739,3063.2,3062.0,0.001]
[1763402164569,0.78416739,3063.1,3062.0,0.001]
[1763402164765,0.29256739,3063.0,3062.0,0.001]
[1763402164997,0.78416739,3063.0,3062.0,0.001]
[1763402165207,0.97096739,3062.9,3062.0,0.001]
[1763402165479,0.6784,3062.9,3062.0,0.001]
[1763402165779,0.4708,3062.8,3062.0,0.001]
[1763402166374,0.76360796,3062.8,3062.0,0.001]
[1763402166674,0.4912,3062.1,3062.0,0.001]
[1763402166988,0.4708,3062.7,3062.0,0.001]
[1763402167190,0.4912,3062.1,3062.0,0.001]
[1763402167825,0.4708,3062.7,3062.0,0.001]
[1763402168764,0.4912,3062.1,3062.0,0.001]
[1763402169229,0.4708,3062.5,3062.0,0.001]
[1763402172423,0.1985,3062.9,3062.1,0.1162]
[1763402172580,0.1985,3062.9,3062.0,0.001]
[1763402173007,0.1985,3062.9,3061.0,1.31249664]
[1763402173192,0.1985,3062.9,3061.0,0.71879623]
[1763402173621,0.1985,3062.9,3061.2,0.405504]
[1763402173789,8.9512277,3063.8,3061.2,0.405504]
[1763402173791,0.1888,3063.9,3061.8,0.405504]
[1763402174120,0.4708,3063.8,3061.8,0.405504]
[1763402174278,0.29267596,3063.8,3062.0,0.405504]
[1763402174484,0.4708,3063.7,3062.0,0.405504]
[1763402175679,0.4708,3063.7,3061.9,0.93567317]
[1763402176020,0.4708,3063.7,3061.5,0.405504]
[1763402176468,0.76347596,3063.7,3061.4,0.405504]
[1763402176873,0.4708,3063.6,3061.4,0.405504]
[1763402177074,0.4708,3063.6,3061.5,0.93567317]
[1763402177231,0.4708,3063.6,3061.0,2.64732254]
[1763402177232,9.4220277,3063.6,3061.0,2.64732254]
[1763402177430,0.96671362,3063.5,3061.1,0.405504]
[1763402177638,0.29267596,3063.4,3061.1,0.405504]
[1763402177834,0.75347596,3063.4,3061.1,0.405504]
[1763402178083,0.75347596,3063.4,3061.3,8.9512277]
[1763402178388,0.75347596,3063.3,3061.4,0.89838946]
[1763402178684,0.75347596,3063.2,3061.4,0.89838946]
[1763402178876,0.29267596,3063.1,3061.4,0.89838946]
[1763402179038,0.4608,3063.0,3061.1,1.31249664]
[1763402179250,0.4608,3063.0,3061.1,3.05282654]
[1763402179443,0.1918,3062.9,3061.1,3.05282654]
[1763402179667,0.1918,3062.9,3061.1,1.31249664]
[1763402179875,0.1918,3062.9,3061.2,1.20040542]
[1763402180081,0.1918,3062.9,3061.3,0.405504]
[1763402180292,0.4608,3063.6,3061.5,8.9512277]
[1763402180590,0.29260051,3063.8,3062.0,0.405504]
[1763402180778,0.4608,3063.8,3062.1,0.93567317]
[1763402180974,0.002,3063.9,3062.4,0.405504]
[1763402181647,0.1938,3063.9,3062.4,0.405504]
[1763402182158,0.002,3063.9,3062.4,0.405504]
[1763402182358,0.002,3063.9,3063.1,8.9512277]
[1763402182593,0.002,3063.9,3063.2,0.89512277]
[1763402182776,0.1938,3063.9,3062.6,0.90699264]
[1763402183182,0.6546,3063.9,3062.2,1.7403299]
[1763402183506,0.6546,3063.9,3061.6,1.7403299]
[1763402183507,0.6664,3062.3,3061.6,1.7403299]
[1763402183665,0.6664,3062.3,3060.4,1.62294032]
[1763402183666,0.29257528,3062.2,3060.3,0.98246142]
[1763402183871,0.4608,3062.2,3060.0,0.3598038]
[1763402184067,0.4608,3062.2,3060.2,8.9512277]
[1763402184268,0.4608,3062.2,3060.3,1.80211541]
[1763402184500,0.4608,3062.2,3060.3,0.89512277]
[1763402184990,0.4608,3062.2,3060.3,1.80211541]
[1763402185301,0.1918,3062.3,3060.6,8.9512277]
[1763402185452,0.1918,3062.4,3060.6,8.9512277]
[1763402185659,0.1918,3062.4,3061.1,0.405504]
[1763402185872,0.1918,3062.4,3060.8,0.405504]
[1763402185873,0.4608,3062.3,3060.8,0.405504]
[1763402186366,0.4608,3062.3,3060.7,0.90699264]
[1763402186565,0.4608,3062.3,3060.6,8.9512277]
[1763402186566,0.4608,3062.3,3060.6,0.405504]
[1763402187191,0.1918,3062.4,3060.8,8.9512277]
[1763402187393,0.1918,3062.4,3060.9,0.89512277]
[1763402187910,0.6526,3062.4,3060.9,1.80211541]
[1763402188300,0.4608,3062.3,3060.9,0.89512277]
[1763402191413,0.1918,3062.4,3060.9,0.89512277]
[1763402191414,0.1918,3062.4,3061.0,0.43817306]
[1763402191599,0.1918,3062.4,3061.0,0.405504]
[1763402191913,0.1918,3062.4,3061.1,0.22076194]
[1763402192289,0.4608,3062.3,3061.1,0.22076194]
[1763402194203,0.1918,3062.4,3061.1,0.22076194]
[1763402194714,0.6526,3062.4,3061.1,0.22076194]
[1763402195849,0.4757,3062.3,3061.1,0.22076194]
[1763402195992,0.1918,3062.4,3061.2,8.9512277]
[1763402196192,0.1918,3062.4,3061.3,0.91719896]
[1763402196592,0.4757,3062.3,3061.3,0.91719896]
[1763402196805,0.1918,3062.4,3061.1,0.22076194]
[1763402197009,0.1918,3062.4,3061.0,0.405504]
[1763402197593,0.1918,3062.4,3061.2,8.9512277]
[1763402197795,0.002,3062.9,3061.6,8.9512277]
[1763402197796,0.1954,3062.8,3061.6,8.9512277]
[1763402197991,0.1954,3062.8,3060.9,1.7403299]
[1763402197992,0.1954,3062.8,3061.3,0.90699264]
[1763402198297,0.4757,3062.7,3060.9,1.31249664]
[1763402198515,0.4757,3062.7,3061.0,1.02637243]
[1763402199006,0.4996,3061.1,3060.2,8.9512277]
[1763402199209,0.37245245,3062.6,3060.2,8.9512277]
[1763402199410,0.4757,3062.5,3060.2,8.9512277]
[1763402199622,0.29288725,3062.4,3060.2,8.9512277]
[1763402199824,0.29288725,3062.4,3060.4,0.98463505]
[1763402199996,0.4757,3062.3,3060.4,0.98463505]
[1763402203253,0.4757,3062.3,3060.5,0.405504]
[1763402204050,0.1954,3062.8,3060.5,0.405504]
[1763402204051,0.4757,3062.6,3060.7,0.405504]
[1763402204209,0.4757,3062.6,3060.9,0.405504]
[1763402205038,0.1954,3062.8,3061.1,0.405504]
[1763402205367,0.4757,3062.7,3061.1,0.405504]
[1763402205857,0.1954,3062.8,3061.1,1.31249664]
[1763402206060,0.002,3062.9,3061.7,0.405504]
[1763402206241,0.002,3062.9,3061.8,0.93567317]
[1763402207055,0.4757,3062.8,3061.8,0.93567317]
[1763402207217,0.4757,3062.8,3061.4,0.405504]
[1763402207419,0.002,3062.9,3061.7,0.405504]
[1763402207854,0.1974,3062.9,3061.7,0.405504]
[1763402208018,0.002,3062.9,3061.7,0.405504]
[1763402208211,0.002,3062.9,3062.1,0.405504]
[1763402208611,0.002,3062.9,3062.1,1.31249664]
[1763402209112,0.002,3062.9,3061.8,0.93567317]
[1763402209113,0.002,3062.9,3062.8,9.3567317]
[1763402209317,0.002,3063.3,3062.9,0.405504]
[1763402209551,0.002,3063.3,3063.1,0.405504]
[1763402210441,0.002,3063.9,3063.0,0.405504]
[1763402210757,0.002,3063.9,3063.4,0.405504]
[1763402211121,0.002,3063.6,3063.4,0.405504]
[1763402212015,0.002,3063.9,3063.4,0.405504]
[1763402212216,1.11073108,3066.7,3063.4,0.405504]
[1763402212217,0.1954,3065.7,3063.9,1.31249664]
[1763402212416,0.1954,3065.7,3064.3,10.26372434]
[1763402212653,0.6711,3065.7,3064.3,1.31249664]
[1763402213016,0.1954,3065.7,3064.3,10.26372434]
[1763402213326,0.1954,3066.1,3064.4,1.31249664]
[1763402213518,0.4757,3065.8,3064.4,1.31249664]
[1763402213911,0.4777,3065.1,3064.0,0.50685034]
[1763402214026,0.4777,3065.1,3063.6,0.90699264]
[1763402214227,0.4777,3065.1,3063.5,8.9512277]
[1763402214432,0.002,3065.1,3064.0,0.405504]
[1763402214649,0.002,3065.1,3064.1,0.93567317]
[1763402214829,0.4777,3065.1,3064.1,0.93567317]
[1763402215030,0.4777,3065.1,3063.6,0.90699264]
[1763402215433,0.4777,3065.1,3063.1,8.9512277]
[1763402215630,0.4777,3065.1,3063.3,0.405504]
[1763402215862,0.4777,3065.1,3063.1,8.9512277]
[1763402216066,0.4777,3065.1,3063.2,0.90699264]
[1763402216364,0.4777,3065.1,3063.3,0.98582203]
[1763402216669,0.4777,3065.1,3063.4,0.405504]
[1763402216822,0.4777,3065.1,3063.3,0.98582203]
[1763402217701,0.4777,3065.1,3062.3,8.9512277]
[1763402217702,0.1954,3063.4,3062.3,8.9512277]
[1763402217994,0.1954,3063.4,3061.4,1.7403299]
[1763402217995,0.6711,3064.0,3062.7,8.9512277]
[1763402218153,0.6711,3064.0,3062.8,0.405504]
[1763402218352,0.6711,3064.0,3062.9,0.93567317]
[1763402218567,0.4757,3063.9,3062.9,0.93567317]
[1763402218855,0.1954,3064.0,3062.9,0.93567317]
[1763402219063,0.1954,3064.0,3062.8,0.405504]
[1763402219488,0.4757,3064.6,3063.4,8.9512277]
[1763402219790,0.4757,3064.6,3063.1,0.405504]
[1763402219791,0.4757,3064.3,3063.1,1.31249664]
[1763402219986,0.4757,3064.3,3063.3,0.405504]
[1763402220307,0.4757,3064.3,3063.2,1.02637243]
[1763402220595,0.695,3063.3,3061.9,0.4757]
[1763402220885,0.1954,3063.3,3061.9,9.4269277]
[1763402221096,0.4757,3063.2,3061.5,8.9512277]
[1763402221280,0.4757,3063.2,3061.6,0.89512277]
[1763402222994,0.4757,3063.2,3061.0,0.001]
[1763402222995,0.1954,3061.7,3061.0,8.9522277]
[1763402223157,0.1954,3063.0,3061.1,0.405504]
[1763402223354,0.4757,3062.9,3061.1,0.90699264]
[1763402224353,0.4757,3062.9,3061.0,0.001]
[1763402224961,0.695,3061.1,3061.0,0.001]
[1763402225267,0.1954,3061.1,3061.0,0.001]
[1763402225456,0.1954,3061.4,3061.0,0.001]
[1763402225660,0.4997,3062.8,3061.0,0.001]
[1763402225858,0.1954,3063.0,3061.0,0.001]
[1763402225859,0.4997,3062.9,3061.0,0.001]
[1763402226395,0.4997,3062.9,3061.4,1.31249664]
[1763402226584,0.1954,3063.0,3061.6,0.405504]
[1763402226786,0.1954,3064.0,3062.4,1.31249664]
[1763402227007,0.1954,3064.0,3062.5,0.405504]
[1763402227161,0.4997,3063.9,3062.1,0.405504]
[1763402227470,0.4997,3063.9,3062.0,0.405504]
[1763402228198,0.4997,3063.9,3062.4,1.31249664]
[1763402228396,0.4997,3063.9,3062.5,1.06793725]
[1763402229187,0.5017,3063.9,3062.5,1.06793725]
[1763402229997,0.5017,3063.9,3062.0,0.405504]
[1763402230401,0.13608316,3063.9,3062.1,0.4078]
[1763402230707,0.002,3063.9,3062.1,0.4078]
[1763402230892,0.002,3063.9,3062.4,1.31249664]
[1763402231266,0.002,3063.9,3062.6,0.405504]
[1763402231710,0.002,3063.9,3062.7,0.2719]
[1763402232812,0.002,3063.9,3062.8,9.77237982]
[1763402233012,0.002,3063.9,3062.9,1.27632798]
[1763402233418,0.002,3063.9,3063.0,0.2719]
[1763402233734,0.002,3063.9,3062.9,1.00442798]
[1763402233735,0.4997,3063.8,3062.9,1.00442798]
[1763402233898,0.4915,3063.0,3062.1,0.1359]
[1763402234095,0.143,3062.9,3062.1,0.1359]
[1763402234298,0.1938,3062.9,3061.8,0.1359]
[1763402234542,0.4997,3062.8,3061.8,0.1359]
[1763402235406,0.1938,3062.9,3061.8,0.1359]
[1763402235609,0.6935,3062.9,3061.8,0.1359]
[1763402235937,0.4997,3062.8,3061.8,0.1359]
[1763402236339,0.1938,3062.9,3061.8,0.1359]
[1763402236639,0.4997,3062.8,3061.8,0.1359]
[1763402236816,0.4997,3062.8,3062.0,0.236]
[1763402238624,0.332442,3062.1,3062.0,0.236]
[1763402238833,0.4841,3062.4,3062.0,0.236]
[1763402239139,0.4841,3062.8,3062.0,0.236]
[1763402240920,0.1938,3062.9,3062.0,0.236]
[1763402240921,0.1938,3062.9,3062.1,0.1314]
[1763402241107,0.1938,3062.9,3062.2,0.03265626]
[1763402241329,0.1938,3062.9,3062.1,0.1314]
[1763402241520,0.6779,3062.9,3062.1,0.1314]
[1763402243151,0.1938,3062.9,3062.1,0.1314]
[1763402243998,0.4841,3063.6,3062.2,0.808704]
[1763402244824,0.4841,3063.6,3062.2,0.4032]
[1763402245131,0.4841,3063.6,3062.1,0.1314]
[1763402246057,0.4841,3063.6,3062.1,0.5346]
[1763402246358,0.4841,3063.6,3062.1,0.1314]
[1763402246732,0.4841,3063.6,3062.0,0.237]
[1763402247164,0.4841,3063.6,3062.1,0.1314]
[1763402250941,0.4841,3063.6,3062.1,0.5346]
[1763402251364,0.4841,3063.6,3062.3,0.405504]
[1763402251733,0.4841,3063.6,3062.5,0.405504]
[1763402251939,0.002,3063.9,3063.5,0.3459]
[1763402252173,0.1849,3063.9,3063.2,0.1359]
[1763402252349,0.1849,3063.9,3063.3,0.405504]
[1763402252350,0.002,3063.9,3063.3,0.405504]
[1763402252978,0.002,3063.9,3063.3,0.808704]
[1763402253188,0.002,3063.9,3063.8,0.808704]
[1763402253569,0.002,3063.9,3063.8,11.48577246]
[1763402253773,0.002,3063.9,3063.8,12.63434971]
[1763402253958,0.002,3064.3,3063.9,1.31249664]
[1763402254157,0.002,3064.3,3064.2,0.648704]
[1763402254355,0.002,3064.3,3064.2,1.051904]
[1763402254985,0.002,3064.3,3063.9,0.90699264]
[1763402255300,0.002,3064.3,3064.0,1.54774857]
[1763402255687,0.4614,3064.2,3063.2,0.1359]
[1763402256052,0.002,3064.3,3063.2,0.1359]
[1763402256246,0.4634,3064.3,3063.3,0.405504]
[1763402258302,0.4634,3064.3,3063.3,10.17557982]
[1763402258303,0.002,3064.3,3063.3,10.17557982]
[1763402258464,0.002,3064.3,3063.5,0.405504]
[1763402259069,0.002,3064.3,3063.9,1.31249664]
[1763402259282,0.002,3064.3,3064.0,1.06793725]
[1763402260100,0.002,3064.3,3064.0,1.47113725]
[1763402260694,0.002,3064.3,3064.0,1.06793725]
[1763402262296,0.002,3064.3,3062.1,2.44504261]
[1763402262297,0.474,3064.1,3062.9,0.4032]
[1763402262498,0.002,3064.3,3062.9,0.90699264]
[1763402262698,0.002,3064.3,3063.2,0.5391]
[1763402263127,0.4614,3064.2,3063.2,0.1359]
[1763402264690,0.002,3064.3,3063.2,0.1359]
[1763402264890,0.002,3064.3,3063.2,0.5391]
[1763402265125,0.4634,3064.3,3063.2,0.5391]
[1763402265832,0.4634,3064.3,3063.1,0.001]
[1763402266213,0.4634,3064.3,3063.2,0.1359]
[1763402269025,0.002,3064.3,3063.5,0.405504]
[1763402269531,0.4614,3064.2,3063.5,0.405504]
[1763402269825,0.4614,3064.2,3063.5,1.06793725]
[1763402270361,0.6598,3063.6,3063.1,0.001]
[1763402270555,0.474,3063.2,3063.1,0.001]
[1763402270719,0.4614,3063.5,3063.1,0.001]
[1763402271716,0.1858,3063.6,3063.1,0.001]
[1763402271952,0.6472,3063.6,3063.1,0.001]
[1763402272155,0.1858,3063.6,3063.1,0.1369]
[1763402274118,0.6472,3063.6,3063.1,0.001]
[1763402274324,0.4614,3064.0,3063.1,0.1369]
[1763402274562,0.1858,3063.8,3063.1,0.1369]
[1763402274762,0.6472,3063.8,3063.1,0.001]
[1763402275062,0.62989911,3063.8,3063.1,0.1542]
[1763402275241,0.002,3064.3,3063.2,0.405504]
[1763402275242,0.1858,3063.9,3063.2,0.405504]
[1763402277160,0.1858,3063.9,3063.1,0.001]
[1763402277337,0.1858,3063.9,3063.1,0.1542]
[1763402277338,0.6472,3063.9,3063.1,0.1542]
[1763402278478,0.1858,3063.9,3063.1,0.1542]
[1763402279032,0.4614,3064.2,3063.2,10.19287982]
[1763402279239,0.002,3064.3,3063.4,0.405504]
[1763402279784,0.002,3064.3,3063.8,0.405504]
[1763402280134,0.002,3064.3,3063.9,0.4205]
[1763402280340,0.002,3064.3,3063.3,1.03470798]
[1763402280341,0.6598,3063.9,3063.3,1.03470798]
[1763402280569,0.6598,3063.9,3062.8,0.406504]
[1763402280570,0.4377,3063.8,3062.8,0.406504]
[1763402280771,0.8991,3063.8,3063.1,0.001]
[1763402281170,0.4377,3063.8,3063.1,0.001]
[1763402281380,0.4614,3063.7,3063.1,0.001]
[1763402282473,0.474,3063.2,3063.1,0.001]
[1763402282991,0.9354,3063.2,3063.1,0.001]
[1763402284454,0.4614,3063.8,3063.1,0.001]
[1763402284984,0.474,3063.2,3063.1,0.001]
[1763402285350,0.4614,3063.5,3063.1,0.001]
[1763402285697,0.4601,3063.2,3063.1,0.001]
[1763402286079,0.4796,3063.4,3063.1,0.001]
[1763402287190,0.1878,3063.9,3063.1,0.001]
[1763402287356,0.4796,3063.8,3063.1,0.001]
[1763402287559,0.4601,3063.2,3063.1,0.001]
[1763402287793,0.4796,3063.8,3063.1,0.001]
[1763402288992,0.4601,3063.2,3063.1,0.001]
[1763402289363,0.9397,3063.2,3063.1,0.001]
[1763402289857,0.4601,3063.2,3063.1,0.001]
[1763402290062,0.9397,3063.2,3063.1,0.001]
[1763402291864,0.1878,3063.9,3063.1,0.5747]
[1763402291865,0.002,3063.9,3063.1,0.5747]
[1763402292201,0.002,3063.9,3063.8,10.27096464]
[1763402292409,0.002,3064.3,3063.9,1.31249664]
[1763402292573,0.002,3064.6,3064.3,1.31249664]
[1763402292755,0.002,3064.6,3064.5,0.826004]
[1763402292968,0.002,3064.6,3064.3,0.90699264]
[1763402293371,0.002,3064.6,3064.5,0.4205]
[1763402293597,0.002,3064.6,3064.5,0.59529926]
[1763402293792,0.002,3064.6,3064.5,1.01579926]
[1763402294208,0.002,3064.6,3064.3,0.90699264]
[1763402294209,0.002,3064.6,3064.2,8.943472]
[1763402294409,0.4601,3064.3,3063.8,1.02709646]
[1763402294709,0.4601,3064.3,3063.5,0.90699264]
[1763402294710,0.4796,3064.5,3063.6,0.405504]
[1763402294916,0.002,3064.6,3063.8,8.943472]
[1763402295116,0.002,3064.6,3063.9,0.03263814]
[1763402295272,0.002,3064.6,3063.9,0.45313814]
[1763402295474,0.002,3064.6,3064.0,0.405504]
[1763402295684,0.002,3064.6,3064.5,0.4205]
[1763402295919,0.002,3064.6,3064.5,0.841]
[1763402296073,0.51975,3066.2,3064.7,0.405504]
[1763402296273,1.04146862,3067.0,3064.3,0.90699264]
[1763402296274,0.4796,3066.6,3065.2,0.405504]
[1763402296484,0.4796,3066.6,3065.6,8.943472]
[1763402296701,0.4796,3066.6,3065.6,0.8943472]
[1763402296885,0.4796,3066.6,3065.4,0.405504]
[1763402297085,0.4796,3066.6,3065.4,0.826004]
[1763402297302,0.4796,3066.6,3065.7,0.405504]
[1763402297574,0.1982,3067.0,3066.0,8.943472]
[1763402297776,0.002,3067.7,3066.5,0.405504]
[1763402298096,0.002,3067.7,3067.3,0.405504]
[1763402298298,0.002,3067.7,3067.5,8.943472]
[1763402298671,0.002,3067.7,3067.6,1.73299664]
[1763402299072,0.002,3068.4,3067.6,1.73299664]
[1763402299317,0.002,3068.4,3068.0,10.25596864]
[1763402299520,0.4908,3070.0,3068.1,1.31249664]
[1763402299686,0.4908,3070.0,3069.0,0.405504]
[1763402299880,0.002,3071.1,3069.4,8.943472]
[1763402299881,0.4928,3070.7,3069.4,8.943472]
[1763402300199,0.4928,3070.7,3069.5,0.1436]
[1763402300398,0.4928,3070.7,3069.3,0.1436]
[1763402300571,0.4928,3070.7,3068.9,8.943472]
[1763402300776,0.4928,3070.7,3068.2,8.943472]
[1763402300971,0.4928,3070.7,3068.3,1.31249664]
[1763402301172,0.4928,3070.7,3066.9,0.1314]
[1763402301173,0.4928,3070.7,3069.5,0.405504]
[1763402301401,0.4928,3070.7,3069.5,1.31249664]
[1763402301641,0.4928,3070.7,3069.7,0.405504]
[1763402301913,0.4928,3070.7,3069.3,0.405504]
[1763402302119,0.4928,3070.7,3069.5,0.405504]
[1763402302272,0.4928,3070.7,3069.8,8.943472]
[1763402302273,0.002,3070.7,3069.8,8.943472]
[1763402302715,0.002,3070.7,3069.9,1.31249664]
[1763402304425,0.002,3071.1,3070.7,0.405504]
[1763402304591,0.17685,3072.4,3070.9,0.405504]
[1763402304795,0.17685,3072.4,3071.4,8.943472]
[1763402305004,0.66765,3072.4,3071.5,0.46743967]
[1763402305206,0.66765,3072.4,3071.1,0.90699264]
[1763402305410,0.66765,3072.4,3071.2,0.405504]
[1763402305792,0.66765,3072.4,3071.4,8.943472]
[1763402306008,0.17685,3072.4,3071.4,8.943472]
[1763402306410,0.17685,3072.4,3071.5,0.43806138]